bitfinex-derivatives/quotes_SOLF0:USTF0_20240815
["timestamp","ask_amount","ask_price","bid_price","bid_amount"]
[1723741472541,3.4411,145.28,145.2,24.57]
[1723741472750,19.79,145.31,145.22,19.79]
[1723741473052,19.79,145.33,145.24,19.79]
[1723741473349,19.79,145.39,145.29,19.79]
[1723741473554,19.79,145.39,145.3,4.78]
[1723741473746,3.4388,145.38,145.34,3.4394]
[1723741473950,3.4388,145.38,145.25,47.31]
[1723741473951,19.79,145.41,145.35,4.78]
[1723741474155,19.79,145.41,145.36,4.78]
[1723741474353,3.4388,145.38,145.37,4.78]
[1723741474653,19.79,145.39,145.37,4.78]
[1723741474842,19.79,145.39,145.37,4.8307699]
[1723741475242,0.0529556,145.4,145.37,4.8307699]
[1723741475453,0.0529556,145.4,145.39,3.4385]
[1723741475754,0.0529556,145.4,145.37,4.8307699]
[1723741475755,19.79,145.45,145.37,4.8307699]
[1723741475957,24.75,145.46,145.42,3.4377]
[1723741476155,24.75,145.46,145.43,4.78]
[1723741476356,24.75,145.44,145.42,4.78]
[1723741477359,24.79845341,145.44,145.42,4.82453515]
[1723741477748,28.23585341,145.44,145.42,4.82453515]
[1723741477951,4.78,145.43,145.42,4.82453515]
[1723741478153,3.4383,145.4,145.3,4.78]
[1723741478352,24.75,145.4,145.32,3.44]
[1723741478649,8.2185,145.39,145.32,3.44]
[1723741478852,24.75,145.4,145.32,3.44]
[1723741479262,3.4388,145.38,145.32,3.44]
[1723741479757,3.439,145.37,145.32,3.44]
[1723741480163,0.05096474,145.37,145.35,0.04851451]
[1723741480660,0.05096474,145.37,145.3,2.6187]
[1723741480958,0.05096474,145.37,145.33,3.4398]
[1723741481158,0.05096474,145.37,145.35,0.04557622]
[1723741481553,3.49006474,145.37,145.35,0.04557622]
[1723741481752,0.05096474,145.37,145.35,0.04557622]
[1723741482053,3.4392,145.36,145.35,0.04557622]
[1723741484048,3.48996474,145.37,145.35,0.04557622]
[1723741484255,0.05096474,145.37,145.35,0.04557622]
[1723741484853,3.4392,145.36,145.35,0.04557622]
[1723741485547,3.48996474,145.37,145.35,0.04557622]
[1723741487159,0.05096474,145.37,145.35,0.04557622]
[1723741487861,0.05096474,145.37,145.35,3.48487622]
[1723741490366,0.05096474,145.37,145.35,0.04557622]
[1723741490761,28.1892,145.36,145.35,0.04557622]
[1723741490962,29.53,145.36,145.26,4.78]
[1723741491263,29.53,145.36,145.27,3.4412]
[1723741491264,3.4405,145.31,145.27,3.4412]
[1723741491464,24.75,145.33,145.26,2.5526]
[1723741491668,3.4403,145.32,145.26,2.5526]
[1723741491861,24.75,145.33,145.27,3.4413]
[1723741492165,3.4405,145.31,145.26,2.5526]
[1723741492371,0.04430074,145.3,145.28,0.04619645]
[1723741494468,0.04430074,145.3,145.28,3.48729645]
[1723741495666,0.04430074,145.3,145.29,3.4408]
[1723741499670,28.1895,145.35,145.32,3.4401]
[1723741500072,29.53,145.37,145.26,2.5526]
[1723741500677,3.4396,145.35,145.26,2.5526]
[1723741500884,3.4396,145.35,145.31,3.4402]
[1723741501386,3.4393,145.36,145.33,3.4398]
[1723741501682,29.53,145.37,145.3,0.04915666]
[1723741501888,0.0495555,145.36,145.26,2.5526]
[1723741502081,3.4394,145.35,145.26,2.5526]
[1723741502284,3.4394,145.35,145.3,0.04603458]
[1723741502886,29.53,145.37,145.3,0.04603458]
[1723741503084,0.04931804,145.34,145.3,0.04603458]
[1723741503292,0.04931804,145.34,145.31,3.4404]
[1723741503582,3.48911804,145.34,145.31,3.4404]
[1723741504088,0.04931804,145.34,145.3,3.48653458]
[1723741504286,3.4401,145.33,145.3,3.48653458]
[1723741504591,24.75,145.33,145.3,0.04603458]
[1723741504891,3.4404,145.31,145.3,0.04603458]
[1723741505082,24.75,145.33,145.3,0.04603458]
[1723741505282,3.4402,145.32,145.3,0.04603458]
[1723741505679,24.75,145.33,145.3,3.48663458]
[1723741505884,24.75,145.33,145.3,0.04603458]
[1723741506685,3.4404,145.31,145.3,0.04603458]
[1723741507084,24.75,145.31,145.23,4.78]
[1723741507280,24.75,145.28,145.2,2.5749]
[1723741507889,3.4412,145.28,145.25,3.4417]
[1723741508091,24.75,145.3,145.2,2.5749]
[1723741508385,3.4413,145.27,145.24,3.4419]
[1723741508592,3.4413,145.27,145.25,0.04462949]
[1723741508988,3.4413,145.27,145.25,3.48642949]
[1723741509283,3.49289716,145.28,145.25,3.48642949]
[1723741509487,3.49289716,145.28,145.25,0.04462949]
[1723741509686,0.05169716,145.28,145.26,3.4414]
[1723741509880,0.05169716,145.28,145.25,0.04462949]
[1723741510783,0.05169716,145.28,145.26,3.4414]
[1723741511180,0.05169716,145.28,145.25,0.04462949]
[1723741511390,3.4413,145.27,145.25,0.04462949]
[1723741511578,24.80169716,145.28,145.25,0.04462949]
[1723741511783,3.4416,145.26,145.25,0.04462949]
[1723741511990,23.2716,145.26,145.25,0.04462949]
[1723741512391,23.2716,145.26,145.17,1.2733]
[1723741512392,19.83,145.26,145.17,1.2733]
[1723741512885,3.4419,145.25,145.22,3.4424]
[1723741513085,19.83,145.26,145.18,19.83]
[1723741513284,25.8628,145.28,145.18,19.83]
[1723741513486,25.8628,145.28,145.24,3.4419]
[1723741513487,3.4415,145.27,145.24,3.4419]
[1723741513692,21.0828,145.28,145.24,3.4419]
[1723741513886,0.05247974,145.27,145.24,3.49108865]
[1723741514084,3.49387974,145.27,145.24,3.49108865]
[1723741514287,0.05247974,145.27,145.24,0.04918865]
[1723741514787,3.4417,145.26,145.24,0.04918865]
[1723741515190,3.4418,145.25,145.24,0.04918865]
[1723741516094,3.4418,145.25,145.12,24.78]
[1723741516095,24.78,145.25,145.12,24.78]
[1723741516288,24.78,145.25,145.13,2.5727]
[1723741516593,3.4422,145.24,145.14,24.78]
[1723741516793,3.4422,145.24,145.14,26.0563]
[1723741516995,3.4423,145.23,145.2,3.4428]
[1723741517392,3.4423,145.23,145.21,3.4427]
[1723741517694,3.4423,145.23,145.2,3.5081487]
[1723741517695,0.04463265,145.23,145.2,3.5081487]
[1723741517897,0.04463265,145.23,145.17,4.78]
[1723741518090,24.78,145.27,145.24,3.4419]
[1723741518390,24.83042723,145.27,145.24,3.4419]
[1723741518596,24.83042723,145.27,145.17,4.78]
[1723741518796,24.78,145.27,145.17,4.78]
[1723741518990,3.4419,145.25,145.17,4.78]
[1723741519185,0.04401329,145.23,145.17,4.78]
[1723741519397,0.04401329,145.23,145.22,3.4424]
[1723741519596,0.04401329,145.23,145.17,4.78]
[1723741520300,24.78,145.22,145.08,6.8916]
[1723741520488,24.78,145.22,145.12,1.2678]
[1723741520690,4.78,145.21,145.12,29.49707212]
[1723741520886,4.78,145.21,145.17,3.4437]
[1723741520887,0.05022441,145.18,145.17,3.4437]
[1723741521995,0.05022441,145.18,145.12,6.0478]
[1723741522191,24.83022441,145.18,145.03,6.8936]
[1723741522395,24.83022441,145.18,145.06,26.133]
[1723741522699,3.4443,145.15,145.06,29.5446496]
[1723741523093,29.56,145.18,145.12,3.4447]
[1723741523299,0.04829267,145.13,145.06,29.5446496]
[1723741524188,24.78,145.15,145.06,4.7646496]
[1723741524394,24.78,145.15,145.06,1.353]
[1723741524595,24.78,145.15,145.06,4.72333689]
[1723741524798,0.05182506,145.11,145.06,4.72333689]
[1723741525295,0.05182506,145.11,145.06,1.353]
[1723741526201,0.05182506,145.11,145.09,3.4455]
[1723741526693,0.05182506,145.11,145.06,1.353]
[1723741527500,0.05182506,145.11,145.09,3.4455]
[1723741528502,0.05182506,145.11,145.06,1.353]
[1723741529204,3.49702506,145.11,145.08,3.4457]
[1723741529898,0.05182506,145.11,145.08,3.4457]
[1723741530896,3.49712506,145.11,145.07,3.446]
[1723741531193,0.05182506,145.11,145.07,3.446]
[1723741531392,0.05182506,145.11,145.04,6.02051687]
[1723741531598,24.78,145.1,145.04,6.02051687]
[1723741532196,24.78,145.1,144.99,1.2816]
[1723741532394,24.78,145.08,145.01,1.3532]
[1723741532590,24.78,145.08,145.06,3.4461]
[1723741532993,24.78,145.08,145.06,3.4462]
[1723741533201,24.78,145.08,145.01,1.3532]
[1723741533402,24.83176722,145.08,145.01,1.3532]
[1723741533603,24.83176722,145.08,145.06,3.4462]
[1723741533999,19.90176722,145.08,145.06,3.4462]
[1723741535500,0.05176722,145.08,145.07,3.4461]
[1723741535702,19.90176722,145.08,144.99,1.2816]
[1723741535907,19.90176722,145.08,145.05,3.4464]
[1723741536202,23.296,145.08,145.05,3.4464]
[1723741536403,23.34065617,145.08,145.05,3.4464]
[1723741536601,19.89465617,145.08,145.04,3.4467]
[1723741536800,23.34065617,145.08,145.0,4.73049979]
[1723741536999,23.34065617,145.08,145.01,1.3403]
[1723741537201,19.89465617,145.08,145.01,4.80795988]
[1723741537506,19.89465617,145.08,145.01,1.3403]
[1723741537700,19.89465617,145.08,145.06,3.4463]
[1723741538301,19.89465617,145.08,145.01,1.3403]
[1723741539006,23.34065617,145.08,145.05,3.4465]
[1723741539508,23.34065617,145.08,145.01,4.7963477]
[1723741540106,23.34065617,145.08,145.05,3.4464]
[1723741540596,3.4461,145.07,145.05,3.4464]
[1723741541105,19.89465617,145.08,145.01,4.7963477]
[1723741541309,23.34055617,145.08,145.01,4.7963477]
[1723741541602,19.89465617,145.08,145.06,3.4462]
[1723741541995,0.04465617,145.08,145.01,4.7963477]
[1723741542200,0.04465617,145.08,145.07,3.4461]
[1723741542401,0.04465617,145.08,145.01,4.7963477]
[1723741542599,0.04465617,145.08,145.06,3.4463]
[1723741543502,0.04465617,145.08,145.01,4.7963477]
[1723741543903,3.49065617,145.08,145.01,4.7963477]
[1723741544108,0.04465617,145.08,145.06,3.4463]
[1723741544313,0.04465617,145.08,145.01,4.7963477]
[1723741544704,0.04465617,145.08,145.06,3.4461]
[1723741545007,0.04465617,145.08,145.01,4.7963477]
[1723741545215,0.04465617,145.08,145.01,24.6463477]
[1723741545504,0.04465617,145.08,145.01,4.7963477]
[1723741545708,0.04465617,145.08,145.06,3.4462]
[1723741545899,0.04465617,145.08,145.01,4.7963477]
[1723741546101,19.89465617,145.08,145.0,4.78]
[1723741546302,19.89465617,145.08,145.04,3.4466]
[1723741546503,3.4462,145.07,145.0,4.78]
[1723741546699,3.4462,145.07,145.0,8.24776546]
[1723741546918,19.89465617,145.08,145.05,3.4465]
[1723741547107,23.2959,145.08,145.05,3.4465]
[1723741547414,23.34328004,145.08,145.05,3.4465]
[1723741547715,3.4461,145.07,144.97,8.6574]
[1723741548011,3.4461,145.07,144.97,31.97564367]
[1723741548312,0.04612617,145.03,144.97,31.97564367]
[1723741548911,0.04612617,145.03,145.02,3.4473]
[1723741555814,19.85,145.1,145.02,4.78]
[1723741556016,28.0755,145.1,145.02,4.78]
[1723741556212,23.2955,145.1,145.02,4.78]
[1723741556413,23.2955,145.1,145.07,3.4459]
[1723741556609,19.85,145.1,145.02,4.78]
[1723741556815,19.85,145.1,145.03,2.5638]
[1723741557014,0.04729687,145.07,145.05,0.04897766]
[1723741557519,0.04729687,145.07,145.06,3.4463]
[1723741558220,0.04729687,145.07,145.06,6.96152345]
[1723741558518,0.04729687,145.07,145.06,3.4463]
[1723741559916,19.85,145.12,145.11,3.4451]
[1723741560617,19.85,145.14,145.13,3.4446]
[1723741561319,19.85,145.14,145.12,0.04757475]
[1723741561512,19.85,145.13,145.09,3.44213214]
[1723741561711,19.85,145.1,145.03,2.5638]
[1723741561910,4.78,145.14,145.09,3.4456]
[1723741562117,19.85,145.12,145.07,3.46108471]
[1723741562318,19.85,145.12,145.11,3.4451]
[1723741562618,19.85,145.12,145.1,0.04799973]
[1723741563519,19.85,145.11,145.1,0.04799973]
[1723741563817,19.85,145.11,145.03,7.3438]
[1723741564122,19.85,145.12,145.03,7.3438]
[1723741564420,19.85,145.12,145.03,27.1938]
[1723741564618,1.35,145.15,145.03,27.1938]
[1723741564619,19.85,145.14,145.03,27.1938]
[1723741564816,3.4449,145.13,145.09,3.4455]
[1723741565013,0.04561529,145.1,145.09,3.4455]
[1723741565214,0.04561529,145.1,145.03,27.1938]
[1723741565418,19.85,145.12,145.09,3.4456]
[1723741565621,19.85,145.12,145.03,27.1938]
[1723741565919,19.85,145.1,145.03,7.3438]
[1723741566120,0.05019669,145.09,145.03,7.3438]
[1723741567117,0.05019669,145.09,145.07,3.4459]
[1723741568223,0.05019669,145.09,145.03,7.3438]
[1723741568430,0.05019669,145.09,145.08,3.4458]
[1723741572625,0.05019669,145.09,145.04,4.78]
[1723741573032,0.05019669,145.09,145.08,3.4458]
[1723741575732,24.63,145.16,145.07,1.29]
[1723741576032,19.85,145.16,145.1,0.0466391]
[1723741576434,3.4442,145.15,145.12,3.4447]
[1723741576931,3.4444,145.14,145.12,3.4447]
[1723741577433,0.05273511,145.15,145.13,3.4446]
[1723741577732,0.05273511,145.15,145.1,0.0466391]
[1723741578032,3.49703511,145.15,145.12,3.4448]
[1723741579337,0.05273511,145.15,145.13,3.4446]
[1723741579531,0.05273511,145.15,145.1,0.0466391]
[1723741580032,3.49703511,145.15,145.12,3.4447]
[1723741580231,0.05273511,145.15,145.1,0.0466391]
[1723741580629,3.49693511,145.15,145.12,3.4448]
[1723741581132,0.05273511,145.15,145.12,3.4448]
[1723741581434,0.05273511,145.15,145.1,0.0466391]
[1723741581435,19.90273511,145.15,145.1,0.0466391]
[1723741581737,23.34693511,145.15,145.12,3.4447]
[1723741582038,0.05273511,145.15,145.1,0.0466391]
[1723741582235,0.05273511,145.15,145.13,3.4445]
[1723741582431,0.05273511,145.15,145.1,0.0466391]
[1723741582639,0.05273511,145.15,145.1,19.8966391]
[1723741582943,0.05273511,145.15,145.14,3.4444]
[1723741587936,63.65881713,145.2,145.19,3.4435]
[1723741588128,19.85,145.24,145.15,21.1154]
[1723741588334,23.2925,145.24,145.21,3.4429]
[1723741588731,23.2925,145.24,145.15,21.1154]
[1723741588732,19.85,145.24,145.15,21.1154]
[1723741588929,19.85,145.24,145.22,3.4426]
[1723741589136,0.04387962,145.21,145.18,0.0473149]
[1723741589337,0.04387962,145.21,145.18,4.8273149]
[1723741589534,19.85,145.24,145.18,4.78]
[1723741589735,19.85,145.24,145.18,4.83124746]
[1723741589736,0.04541692,145.21,145.18,4.83124746]
[1723741590135,0.04541692,145.21,145.2,3.4433]
[1723741591438,19.89541692,145.21,145.18,0.05124746]
[1723741592939,23.33861692,145.21,145.18,3.49494746]
[1723741593940,0.04541692,145.21,145.19,3.4435]
[1723741594658,0.04541692,145.21,145.18,0.05124746]
[1723741594659,0.04541692,145.21,145.2,3.4433]
[1723741599138,0.04541692,145.21,145.18,0.05124746]
[1723741599743,3.48861692,145.21,145.18,3.49494746]
[1723741600847,0.04541692,145.21,145.18,0.05124746]
[1723741601752,0.04541692,145.21,145.19,3.4434]
[1723741604250,0.04541692,145.21,145.2,3.4433]
[1723741604848,0.04541692,145.21,145.18,0.05124746]
[1723741605454,0.04541692,145.21,145.2,3.4433]
[1723741606547,0.04541692,145.21,145.18,0.05124746]
[1723741607049,19.85,145.19,145.18,0.05124746]
[1723741607247,19.85,145.19,145.18,3.49504746]
[1723741607443,3.4433,145.2,145.18,3.49504746]
[1723741607444,19.89541692,145.21,145.18,3.49504746]
[1723741607644,23.33861692,145.21,145.18,3.49504746]
[1723741608059,23.33861692,145.21,145.19,3.4435]
[1723741608060,19.89541692,145.21,145.19,3.4435]
[1723741611456,23.33851692,145.21,145.19,3.4435]
[1723741611653,23.33851692,145.21,145.18,0.05124746]
[1723741612361,0.04541692,145.21,145.18,0.05124746]
[1723741612561,19.85,145.19,145.13,1.3057]
[1723741612855,19.85,145.19,145.12,1.2768]
[1723741612856,23.2941,145.17,145.12,1.2768]
[1723741613057,19.85,145.17,145.1,4.78]
[1723741613257,19.85,145.15,145.09,1.3113]
[1723741613859,3.4447,145.14,145.11,3.4453]
[1723741614058,0.04541708,145.13,145.11,0.04421326]
[1723741615161,0.04541708,145.13,145.12,3.4452]
[1723741615769,19.85,145.19,145.1,19.85]
[1723741615963,19.85,145.19,145.1,24.63]
[1723741616259,19.85,145.2,145.1,24.63]
[1723741616654,6.123,145.21,145.18,3.4436]
[1723741616655,3.4432,145.21,145.18,3.4436]
[1723741617075,0.05200769,145.21,145.13,1.3611]
[1723741617275,3.4433,145.2,145.18,0.04453674]
[1723741617878,23.2935,145.19,145.18,0.04453674]
[1723741618576,3.4442,145.17,145.09,6.0913]
[1723741618772,19.85,145.19,145.09,6.0913]
[1723741618976,3.4446,145.15,145.09,6.0913]
[1723741619374,19.85,145.14,145.09,1.3113]
[1723741619574,19.85,145.14,145.08,2.6166]
[1723741619779,0.04517592,145.13,145.1,0.04644031]
[1723741620370,0.04517592,145.13,145.12,3.4452]
[1723741623386,0.04517592,145.13,145.1,0.04644031]
[1723741623980,3.49027592,145.13,145.1,0.04644031]
[1723741624281,0.04517592,145.13,145.1,0.04644031]
[1723741624483,0.04517592,145.13,145.11,3.4453]
[1723741625174,0.04517592,145.13,145.12,3.4452]
[1723741626973,0.04517592,145.13,145.1,0.04644031]
[1723741627578,0.04517592,145.13,145.11,3.4453]
[1723741628081,3.49017592,145.13,145.11,3.4453]
[1723741629379,3.49017592,145.13,145.1,3.49204031]
[1723741629679,3.49017592,145.13,145.1,0.04644031]
[1723741629880,3.49017592,145.13,145.1,3.49194031]
[1723741630486,3.4453,145.12,145.1,3.49194031]
[1723741630775,0.04517592,145.13,145.1,3.49194031]
[1723741631082,3.49027592,145.13,145.1,3.49194031]
[1723741632381,0.04517592,145.13,145.1,0.04644031]
[1723741633482,3.4454,145.11,145.1,0.04644031]
[1723741633680,19.85,145.12,144.99,6.8965]
[1723741633882,3.42787414,145.1,145.03,3.49299962]
[1723741634180,3.4462,145.08,145.05,3.4467]
[1723741634986,3.49421271,145.08,145.05,3.4467]
[1723741636481,3.4465,145.07,145.01,21.1692]
[1723741636685,0.04801271,145.08,145.01,19.85]
[1723741636879,19.89801271,145.08,145.01,3.4476]
[1723741637278,3.4472,145.04,145.01,3.4476]
[1723741637886,3.49342777,145.04,145.01,3.4476]
[1723741638192,0.04622777,145.04,145.01,3.4476]
[1723741638984,3.49342777,145.04,145.01,3.4476]
[1723741639187,0.04622777,145.04,144.98,19.85]
[1723741639591,0.04622777,145.04,144.99,3.43528156]
[1723741639788,0.04622777,145.04,145.02,3.4476]
[1723741640584,3.49332777,145.04,145.02,3.4476]
[1723741640985,0.04622777,145.04,145.02,3.4476]
[1723741641991,0.04622777,145.04,144.99,3.43528156]
[1723741641992,0.04622777,145.04,145.0,19.85]
[1723741642592,0.04622777,145.04,145.02,3.4475]
[1723741643191,0.04622777,145.04,145.03,3.4473]
[1723741643790,0.04622777,145.04,144.99,3.43528156]
[1723741644085,0.04622777,145.04,144.99,19.85]
[1723741644484,0.04622777,145.04,145.0,1.3371]
[1723741644695,4.78,145.12,145.03,19.85]
[1723741644887,19.85,145.17,145.08,19.85]
[1723741645089,19.85,145.17,145.11,3.4453]
[1723741645090,24.63,145.17,145.11,3.4453]
[1723741645393,28.09827382,145.17,145.11,3.4453]
[1723741645589,3.4447,145.15,145.11,3.4453]
[1723741645789,0.0507018,145.15,145.13,0.04800841]
[1723741646100,0.0507018,145.15,145.1,19.85]
[1723741646292,0.0507018,145.15,145.13,0.05089062]
[1723741646491,0.04679746,145.15,145.13,0.05089062]
[1723741646692,3.49149746,145.15,145.13,0.05089062]
[1723741647196,0.04679746,145.15,145.13,0.05089062]
[1723741647593,3.4447,145.14,145.13,0.05089062]
[1723741651192,3.4456,145.11,145.04,2.5123]
[1723741651396,3.4456,145.11,145.08,3.446]
[1723741652398,3.48994223,145.11,145.08,3.446]
[1723741652693,3.4458,145.1,145.06,3.4464]
[1723741652896,0.04434223,145.11,145.04,1.2843]
[1723741653905,3.48984223,145.11,145.08,3.446]
[1723741655300,0.04434223,145.11,145.04,1.2843]
[1723741655501,19.85,145.09,145.02,1.3149]
[1723741655696,3.4465,145.07,145.04,3.447]
[1723741656003,0.04857917,145.07,145.02,1.3149]
[1723741656202,0.04857917,145.07,145.0,4.785]
[1723741656203,3.4473,145.04,145.0,4.785]
[1723741656501,19.89857917,145.07,145.0,1.3371]
[1723741656502,19.85,145.07,145.0,1.3371]
[1723741656701,19.85,145.09,145.0,1.3371]
[1723741656902,0.04630854,145.03,145.0,1.3371]
[1723741657106,3.4465,145.07,145.0,1.3371]
[1723741657301,0.04904885,145.03,145.02,3.4476]
[1723741657696,3.4465,145.07,145.0,1.3371]
[1723741657906,3.4465,145.07,145.03,3.4472]
[1723741657907,0.05266807,145.04,145.03,3.4472]
[1723741660402,0.05266807,145.04,144.98,22.4872]
[1723741660602,0.05266807,145.04,144.99,4.74042926]
[1723741660909,0.05266807,145.04,144.99,24.59042926]
[1723741661204,6.872,145.22,145.03,19.85]
[1723741661409,4.78,145.12,145.09,3.4458]
[1723741661710,6.0157,145.15,145.05,19.85]
[1723741661915,4.78,145.15,145.07,19.85]
[1723741662211,23.37137196,145.18,145.09,19.85]
[1723741662212,28.15137196,145.18,145.09,19.85]
[1723741662404,4.78,145.18,145.13,3.4448]
[1723741662805,3.4444,145.16,145.13,3.4448]
[1723741663214,3.4444,145.16,145.13,3.49211556]
[1723741663699,0.04778402,145.17,145.14,3.4445]
[1723741664109,0.04778402,145.17,145.13,0.04731556]
[1723741664613,0.04778402,145.17,145.13,19.89731556]
[1723741665111,0.04778402,145.17,145.16,3.4443]
[1723741665512,0.04778402,145.17,145.13,21.20441556]
[1723741665513,19.85,145.23,145.13,21.20441556]
[1723741665811,19.85,145.23,145.14,4.78]
[1723741666018,19.85,145.23,145.15,19.85]
[1723741666308,4.78,145.24,145.15,19.85]
[1723741666505,23.2922,145.25,145.17,19.85]
[1723741666706,24.63,145.27,145.18,1.3443]
[1723741666911,0.05075471,145.21,145.18,1.39315546]
[1723741667107,0.05075471,145.21,145.2,3.4433]
[1723741667299,19.85,145.25,145.18,4.77245969]
[1723741667703,3.4419,145.26,145.18,4.77245969]
[1723741668006,0.0466691,145.22,145.19,0.04506484]
[1723741668504,0.0466691,145.22,145.21,3.4429]
[1723741672202,0.0466691,145.22,145.2,3.4432]
[1723741673709,0.0466691,145.22,145.19,0.04506484]
[1723741673710,0.0466691,145.22,145.21,3.4431]
[1723741674711,0.0466691,145.22,145.2,3.4432]
[1723741675014,0.0466691,145.22,145.19,0.04506484]
[1723741675311,0.0466691,145.22,145.2,3.4433]
[1723741677507,0.0466691,145.22,145.19,3.48856484]
[1723741677703,19.8966691,145.22,145.19,0.04506484]
[1723741678308,19.85,145.2,145.19,0.04506484]
[1723741679507,23.2933,145.2,145.19,0.04506484]
[1723741680207,19.85,145.2,145.19,0.04506484]
[1723741681114,23.2933,145.2,145.19,0.04506484]
[1723741681408,23.2933,145.2,144.94,3.19107055]
[1723741681409,19.85,145.2,145.15,3.4444]
[1723741681712,3.5473867,145.22,145.04,6.894]
[1723741681713,19.85,145.18,145.11,3.8444]
[1723741681906,19.85,145.18,145.16,3.444]
[1723741682104,4.78,145.19,145.12,3.46765623]
[1723741682301,8.2236,145.19,145.12,3.46765623]
[1723741682505,4.78,145.19,145.12,3.46765623]
[1723741682705,8.2237,145.19,145.14,0.05066404]
[1723741682902,0.04663498,145.17,145.14,0.05066404]
[1723741683105,0.04663498,145.17,145.15,3.4443]
[1723741683310,0.04663498,145.17,145.14,0.05066404]
[1723741684715,0.04663498,145.17,145.15,3.4445]
[1723741686904,3.49063498,145.17,145.14,3.49526404]
[1723741687109,0.04663498,145.17,145.14,0.05066404]
[1723741688113,0.04663498,145.17,145.16,3.4443]
[1723741690313,0.04663498,145.17,145.15,3.4444]
[1723741690617,0.04663498,145.17,145.14,0.05066404]
[1723741690812,0.04663498,145.17,145.15,3.4445]
[1723741691219,0.04663498,145.17,145.14,0.05066404]
[1723741691420,3.4444,145.16,145.14,0.05066404]
[1723741693114,23.2945,145.15,145.14,0.05066404]
[1723741693617,19.85,145.15,145.09,3.4458]
[1723741693924,19.85,145.12,145.09,3.4458]
[1723741694224,19.85,145.12,145.08,3.4461]
[1723741694423,19.85,145.12,145.05,2.4857]
[1723741694718,23.2953,145.12,145.08,3.4459]
[1723741694922,0.04871496,145.1,145.05,2.4857]
[1723741695222,0.04871496,145.1,145.09,3.4459]
[1723741695611,4.78,145.16,145.07,23.3469971]
[1723741696016,3.4449,145.14,145.07,23.3469971]
[1723741696316,3.4449,145.14,145.1,3.4455]
[1723741696517,3.4449,145.14,145.07,23.3469971]
[1723741696826,0.05183169,145.13,145.11,3.49483659]
[1723741697317,0.05183169,145.13,145.11,0.04963659]
[1723741698222,19.90183169,145.13,145.11,0.04963659]
[1723741698417,19.90183169,145.13,145.07,3.4464]
[1723741698617,19.90183169,145.13,145.05,2.4857]
[1723741699123,19.90183169,145.13,145.07,3.4462]
[1723741699517,3.4453,145.12,145.09,3.4458]
[1723741700223,0.05183169,145.13,145.05,2.4857]
[1723741700224,3.4456,145.11,145.05,2.4857]
[1723741700423,6.05957237,145.14,145.05,2.4857]
[1723741700627,0.05086566,145.09,145.07,3.4462]
[1723741700821,19.85,145.13,145.07,3.4462]
[1723741701016,0.04936223,145.09,145.07,3.4462]
[1723741702823,0.04936223,145.09,145.08,3.4462]
[1723741704119,0.04936223,145.09,145.05,2.4857]
[1723741704325,0.04936223,145.09,145.07,3.4463]
[1723741704728,0.04936223,145.09,145.08,3.4462]
[1723741713827,7.98936223,145.09,145.01,7.94]
[1723741714231,7.94,145.07,145.0,4.78]
[1723741714437,0.04418467,145.06,145.0,12.72]
[1723741715031,7.94,145.02,144.9,4.78]
[1723741715230,7.94,145.02,144.95,1.3386]
[1723741715231,4.78,145.01,144.95,1.3386]
[1723741715629,3.4217084,145.04,144.96,7.94]
[1723741715828,4.78,145.01,145.0,3.4479]
[1723741716028,0.04889209,144.99,144.95,21.1986]
[1723741716434,0.04889209,144.99,144.98,3.4485]
[1723741716733,19.86,145.05,144.97,3.40309342]
[1723741716930,19.86,145.05,144.95,21.1986]
[1723741716931,4.78,145.04,144.95,21.1986]
[1723741717234,0.04432653,145.0,144.95,21.1986]
[1723741717430,0.04432653,145.0,144.99,3.4483]
[1723741718537,1.3075,145.14,144.99,24.64]
[1723741718731,24.64,145.11,145.02,19.86]
[1723741718930,3.4461,145.09,145.02,19.86]
[1723741719243,3.48068637,145.1,145.02,19.86]